fUSD/lending_fUSD_20260205
["ID","MTS","AMOUNT","RATE_DAILY","PERIOD"]
[404563912,1770295833862,-168.15,0.00010307,2]
[404563913,1770295833873,-433.0,0.00010339,2]
[404563914,1770295833883,-502.96360645,0.00010398,2]
[404563915,1770295833893,-1002.5,0.00010498,2]
[404563916,1770295833904,-152.93,0.00010556,2]
[404563917,1770295833915,-361.09,0.00010556,2]
[404563918,1770295833926,-250.0,0.00010732,2]
[404563919,1770295833938,-1600.0,0.00010745,2]
[404563920,1770295833948,-1002.5,0.00010772,2]
[404563921,1770295833959,-500.0,0.00010849,2]
[404563922,1770295833969,-168.15,0.00010913,2]
[404563923,1770295833979,-3292.0,0.00010949,2]
[404563924,1770295833992,-5629.14977618,0.00010999,2]
[404563925,1770295834002,-1002.5,0.00011046,2]
[404563926,1770295834013,-204.69,0.00011237,2]
[404563927,1770295834023,-1002.5,0.0001132,2]
[404563928,1770295834034,-736.0,0.00011373,2]
[404563929,1770295834049,-168.15,0.00011519,2]
[404563930,1770295834060,-1002.5,0.00011594,2]
[404563931,1770295834071,-1600.0,0.00011722,2]
[404563932,1770295834081,-2486.03032258,0.00011857,2]
[404563933,1770295834091,-1002.5,0.00011868,2]
[404563934,1770295834102,-17956.09680627,0.00011944,2]
[404563935,1770295834113,-5629.14977618,0.00011985,2]
[404563936,1770295834124,-4609.0,0.00012044,2]
[404563937,1770295834134,-168.15,0.00012125,2]
[404563938,1770295834144,-1002.5,0.00012142,2]
[404563939,1770295834155,-1002.5,0.00012416,2]
[404563940,1770295834166,-1252.0,0.00012509,2]
[404563941,1770295834176,-17956.09680627,0.00012606,2]
[404563942,1770295834186,-1002.5,0.0001269,2]
[404563943,1770295834197,-168.15,0.00012732,2]
[404563944,1770295834207,-271.06,0.00012877,2]
[404563945,1770295834217,-1002.5,0.00012964,2]
[404563946,1770295834228,-5629.14977618,0.00012971,2]
[404563947,1770295834243,-6997.19874852,0.0001299,2]
[404563948,1770295834254,-18465.71820385,0.0001299,2]
[404563949,1770295834265,-12334.99434168,0.0001299,2]
[404563950,1770295834283,-20240.72138142,0.0001299,2]
[404563951,1770295834293,-1002.5,0.00013238,2]
[404563952,1770295834303,-6209.0,0.00013248,2]
[404563953,1770295834314,-7458.29748946,0.00013268,2]
[404563954,1770295834326,-10497.79931681,0.00013268,2]
[404563955,1770295834337,-1002.5,0.00013512,2]
[404563956,1770295834347,-2486.03032258,0.00013561,2]
[404563957,1770295834358,-500.0,0.00013698,2]
[404563958,1770295834368,-500.0,0.00013698,2]
[404563959,1770295834379,-310.72048062,0.00013698,2]
[404563960,1770295834388,-500.0,0.00013698,2]
[404563961,1770295834399,-244.78542289,0.00013698,2]
[404563962,1770295834409,-500.0,0.00013698,2]
[404563963,1770295834419,-500.0,0.00013698,2]
[404563964,1770295834433,-611.74702431,0.00013698,2]
[404563965,1770295834444,-438.26710356,0.00013698,2]
[404563966,1770295834458,-500.0,0.00013698,2]
[404563967,1770295834469,-500.0,0.00013698,2]
[404563968,1770295834479,-457.99797698,0.00013698,2]
[404563969,1770295834490,-502.58453595,0.00013698,2]
[404563970,1770295834502,-500.0,0.00013698,2]
[404563971,1770295834513,-500.0,0.00013698,2]
[404563972,1770295834524,-500.0,0.00013698,2]
[404563973,1770295834535,-500.0,0.00013698,2]
[404563974,1770295834545,-500.0,0.00013698,2]
[404563975,1770295834556,-500.0,0.00013698,2]
[404563976,1770295834566,-500.0,0.00013698,2]
[404563977,1770295834576,-500.0,0.00013698,2]
[404563978,1770295834587,-500.0,0.00013698,2]
[404563979,1770295834597,-500.0,0.00013698,2]
[404563980,1770295834608,-351.5182,0.00013698,2]
[404563981,1770295834623,-189.57,0.00013699,2]
[404563982,1770295834634,-1002.5,0.00013786,2]
[404563983,1770295834645,-17956.09680627,0.00013929,2]
[404563984,1770295834656,-5629.14977618,0.00013957,2]
[404563985,1770295834667,-1002.5,0.0001406,2]
[404563986,1770295834678,-152.0,0.0001407,3]
[404563987,1770295834688,-378.0,0.00014202,2]
[404563988,1770295834699,-1002.5,0.00014334,2]
[404563989,1770295834710,-378.0,0.00014351,2]
[404563990,1770295834720,-378.0,0.00014442,2]
[404563991,1770295834731,-166.66,0.00014446,2]
[404563992,1770295834743,-378.0,0.00014448,2]
[404563993,1770295834752,-378.0,0.00014466,2]
[404563994,1770295834763,-378.0,0.00014498,2]
[404563995,1770295834774,-378.0,0.00014527,2]
[404563996,1770295834784,-17956.09680627,0.00014591,2]
[404563997,1770295834794,-500.0,0.000146,2]
[404563998,1770295834804,-500.0,0.000146,2]
[404563999,1770295834816,-173.07272258,0.000146,2]
[404564000,1770295834829,-500.0,0.000146,2]
[404564001,1770295834839,-500.0,0.000146,2]
[404564002,1770295834850,-500.0,0.000146,2]
[404564003,1770295834861,-500.0,0.000146,2]
[404564004,1770295834871,-500.0,0.000146,2]
[404564005,1770295834881,-500.0,0.000146,2]
[404564006,1770295834892,-500.0,0.000146,2]
[404564007,1770295834903,-500.0,0.000146,2]
[404564008,1770295834913,-500.0,0.000146,2]
[404564009,1770295834923,-500.0,0.000146,2]
[404564010,1770295834934,-500.0,0.000146,2]
[404564011,1770295834946,-500.0,0.000146,2]
[404564012,1770295834956,-500.0,0.000146,2]
[404564013,1770295834966,-500.0,0.000146,2]
[404564014,1770295834977,-1002.5,0.00014608,2]
[404564015,1770295834987,-151.0,0.00014634,2]
[404564016,1770295834999,-361.09,0.0001466,2]
[404564017,1770295835010,-378.0,0.00014663,2]
[404564018,1770295835020,-141.55256121,0.00014675,2]
[404564019,1770295835034,-236.44743879,0.00014675,2]
[404564020,1770295835044,-951.124593,0.00014703,7]
[404564021,1770295835054,-152.93,0.00014723,2]
[404564022,1770295835065,-378.0,0.0001479,2]
[404564023,1770295835075,-1002.5,0.00014882,2]
[404564024,1770295835085,-166.66,0.00014923,2]
[404564025,1770295835095,-378.0,0.00014934,2]
[404564026,1770295835106,-160.0,0.00014964,2]
[404564027,1770295835116,-250.0,0.00015,2]
[404564028,1770295835127,-378.0,0.00015046,2]
[404564029,1770295835137,-378.0,0.00015051,2]
[404564030,1770295835148,-1000.0,0.00015148,2]
[404564031,1770295835158,-500.0,0.00015148,2]
[404564032,1770295835170,-347.37162909,0.00015148,2]
[404564033,1770295835180,-1002.5,0.00015156,2]
[404564034,1770295835191,-378.0,0.00015197,2]
[404564035,1770295835214,-378.0,0.00015242,2]
[404564036,1770295835226,-17956.09680627,0.00015253,2]
[404564037,1770295835236,-2289.34987132,0.00015265,2]
[404564038,1770295835264,-196.68045126,0.00015265,2]
[404564039,1770295835275,-378.0,0.00015292,2]
[404564040,1770295835286,-378.0,0.00015372,2]
[404564041,1770295835297,-378.0,0.00015372,2]
[404564042,1770295835307,-166.66,0.00015399,2]
[404564043,1770295835318,-867.27015389,0.0001543,2]
[404564044,1770295835335,-135.46699663,0.0001543,2]
[404564045,1770295835346,-378.0,0.00015456,2]
[404564046,1770295835358,-378.0,0.0001547,2]
[404564047,1770295835370,-152.0173956,0.00015507,2]
[404564048,1770295835381,-378.0,0.00015545,2]
[404564049,1770295835392,-152.91785682,0.00015561,2]
[404564050,1770295835403,-204.69,0.00015668,2]
[404564051,1770295835413,-1500.0,0.00015696,2]
[404564052,1770295835423,-378.0,0.00015711,2]
[404564053,1770295835434,-378.0,0.00015792,2]
[404564054,1770295835450,-500.0,0.00015793,2]
[404564055,1770295835461,-378.0,0.00015847,2]
[404564056,1770295835472,-378.0,0.00015869,2]
[404564057,1770295835483,-166.66,0.00015876,2]
[404564058,1770295835497,-1379.24645095,0.00015915,2]
[404564059,1770295835516,-960.57354473,0.00015915,2]
[404564060,1770295835533,-346.78075065,0.00015915,2]
[404564061,1770295835546,-393.43,0.00015915,2]
[404564065,1770295838407,-500.0,8.753e-05,2]
[404564066,1770295838417,-500.0,8.753e-05,2]
[404564067,1770295838428,-500.0,8.753e-05,2]
[404564068,1770295838440,-262.53899684,8.753e-05,2]
[404564069,1770295838453,-500.0,8.753e-05,2]
[404564070,1770295838464,-500.0,8.753e-05,2]
[404564071,1770295838475,-500.0,8.753e-05,2]
[404564072,1770295838490,-500.0,8.753e-05,2]
[404564073,1770295838511,-500.0,8.753e-05,2]
[404564074,1770295838523,-451.09767601,8.753e-05,2]
[404564075,1770295838534,-203.85383044,8.753e-05,2]
[404564076,1770295838545,-500.0,8.753e-05,2]
[404564077,1770295838555,-500.0,8.753e-05,2]
[404564078,1770295838566,-500.0,8.753e-05,2]
[404564079,1770295838576,-500.0,8.753e-05,2]
[404564080,1770295838587,-500.0,8.753e-05,2]
[404564081,1770295838598,-500.0,8.753e-05,2]
[404564082,1770295838609,-500.0,8.753e-05,2]
[404564083,1770295838621,-500.0,8.753e-05,2]
[404564084,1770295838631,-213.38580605,8.753e-05,2]
[404564085,1770295838642,-500.0,8.753e-05,2]
[404564086,1770295838653,-500.0,8.753e-05,2]
[404564087,1770295838665,-500.0,8.753e-05,2]
[404564088,1770295838676,-500.0,8.753e-05,2]
[404564089,1770295838687,-500.0,8.753e-05,2]
[404564090,1770295838699,-500.0,8.753e-05,2]
[404564091,1770295838710,-500.0,8.753e-05,2]
[404564092,1770295838721,-500.0,8.753e-05,2]
[404564093,1770295838732,-500.0,8.753e-05,2]
[404564094,1770295838744,-500.0,8.753e-05,2]
[404564095,1770295838766,-500.0,8.753e-05,2]
[404564096,1770295838777,-500.0,8.753e-05,2]
[404564097,1770295838788,-500.0,8.753e-05,2]
[404564098,1770295838799,-500.0,8.753e-05,2]
[404564099,1770295838810,-500.0,8.753e-05,2]
[404564100,1770295838820,-500.0,8.753e-05,2]
[404564101,1770295838831,-500.0,8.753e-05,2]
[404564102,1770295838841,-5629.14977618,0.00014942,2]
[404564103,1770295838851,-14876.06605994,0.00015915,2]
[404564104,1770295838862,-378.0,0.00015918,2]
[404564105,1770295838873,-990.55073207,0.0001596,2]
[404564106,1770295838883,-200.744485,0.00016,2]
[404564107,1770295838894,-378.0,0.00016017,2]
[404564108,1770295838904,-48731.32249616,0.0001604,2]
[404564109,1770295838915,-152.0173956,0.0001606,2]
[404564110,1770295838925,-1291.24412758,0.00016244,2]
[404564111,1770295838936,-378.0,0.00016274,2]
[404564112,1770295838946,-361.09,0.0001633,2]
[404564113,1770295838956,-166.66,0.00016353,2]
[404564114,1770295838968,-506.82728308,0.00016398,2]
[404564115,1770295838978,-152.0,0.00016402,4]
[404564116,1770295838988,-378.0,0.00016404,2]
[404564117,1770295839006,-378.0,0.00016425,2]
[404564118,1770295839016,-152.93,0.00016456,2]
[404564119,1770295839027,-17956.09680627,0.00016576,2]
[404564120,1770295839039,-378.0,0.00016603,2]
[404564121,1770295839049,-205.472878,0.00016605,7]
[404564122,1770295839060,-152.0173956,0.00016614,2]
[404564123,1770295839070,-378.0,0.00016617,2]
[404564124,1770295839080,-378.0,0.00016683,2]
[404564125,1770295839092,-378.0,0.00016696,2]
[404564126,1770295839103,-378.0,0.00016755,2]
[404564127,1770295839115,-166.66,0.0001683,2]
[404564128,1770295839126,-378.0,0.00016856,2]
[404564129,1770295839136,-378.0,0.0001688,2]
[404564130,1770295839146,-204.69,0.00016984,2]
[404564131,1770295839156,-300.0,0.00017,2]
[404564132,1770295839165,-5148.18,0.00017045,2]
[404564133,1770295839175,-378.0,0.00017047,2]
[404564134,1770295839184,-378.0,0.00017062,2]
[404564135,1770295839194,-150.0,0.00017099,2]
[404564136,1770295839203,-277.35679052,0.00017099,2]
[404564137,1770295839213,-151.0,0.00017099,2]
[404564138,1770295839223,-156.587,0.00017099,2]
[404564139,1770295839232,-162.380719,0.00017099,2]
[404564140,1770295839243,-157.87668982,0.00017099,2]
[404564141,1770295839258,-152.0173956,0.00017168,2]
[404564142,1770295839268,-17526.18566024,0.00017238,2]
[404564143,1770295839281,-429.91114603,0.00017238,2]
[404564144,1770295839291,-911.78658654,0.0001726,2]
[404564145,1770295839303,-88.21341346,0.0001726,2]
[404564146,1770295839313,-1171.78658654,0.0001731,2]
[404564147,1770295839326,-163.21341346,0.0001731,2]
[404564148,1770295839336,-724.37748645,0.0001731,2]
[404564149,1770295839353,-2766.65051355,0.0001731,2]
[404564150,1770295839364,-1411.0,0.0001731,2]
[404564151,1770295839375,-616.445,0.0001731,2]
[404564152,1770295839385,-1271.0,0.0001731,2]
[404564153,1770295839395,-150.0,0.0001731,2]
[404564154,1770295839405,-1205.0,0.0001731,2]
[404564155,1770295839415,-917.0,0.0001731,2]
[404564156,1770295839425,-6581.0,0.0001731,2]
[404564157,1770295839434,-3254.0,0.0001731,2]
[404564158,1770295839445,-378.0,0.00017313,2]
[404564159,1770295839458,-378.0,0.00017348,2]
[404564160,1770295839468,-773.71,0.00017374,2]
[404564161,1770295839479,-792.603827,0.00017376,7]
[404564162,1770295839490,-378.0,0.00017386,2]
[404564163,1770295839506,-378.0,0.00017387,2]
[404564164,1770295839517,-378.0,0.00017393,2]
[404564165,1770295839529,-378.0,0.00017422,2]
[404564166,1770295839540,-7087.82103296,0.00017439,2]
[404564167,1770295839550,-500.0,0.000175,2]
[404564168,1770295839561,-378.0,0.00017519,2]
[404564169,1770295839571,-378.0,0.00017528,2]
[404564170,1770295839582,-152.62,0.00017529,2]
[404564171,1770295839592,-1000.0,0.00017534,2]
[404564172,1770295839602,-65935.2078,0.0001754,2]
[404564173,1770295839612,-869.18,0.00017571,2]
[404564174,1770295839622,-378.0,0.00017576,2]
[404564175,1770295839632,-549.0,0.00017603,2]
[404564176,1770295839643,-549.0,0.00017606,2]
[404564177,1770295839653,-378.0,0.00017641,2]
[404564178,1770295839663,-287.61899177,0.00017647,2]
[404564179,1770295839674,-378.0,0.00017666,2]
[404564180,1770295839684,-7087.82103296,0.0001767,2]
[404564181,1770295839695,-6611.09729915,0.000177,2]
[404564182,1770295839706,-152.0173956,0.00017722,2]
[404564183,1770295839716,-549.0,0.00017767,2]
[404564184,1770295839727,-549.0,0.0001779,2]
[404564185,1770295839736,-436.0,0.00017808,2]
[404564186,1770295839748,-1000.0,0.00017808,2]
[404564187,1770295839759,-1000.0,0.00017825,2]
[404564188,1770295839771,-1000.0,0.00017825,2]
[404564189,1770295839781,-1000.0,0.00017825,2]
[404564190,1770295839792,-1000.0,0.00017825,2]
[404564191,1770295839802,-1000.0,0.00017825,2]
[404564192,1770295839812,-1000.0,0.00017825,2]
[404564193,1770295839822,-1000.0,0.00017825,2]
[404564194,1770295839832,-1000.0,0.00017825,2]
[404564196,1770295839842,-1000.0,0.00017825,2]
[404564198,1770295839851,-1000.0,0.00017825,2]
[404564199,1770295839861,-1000.0,0.00017825,2]
[404564200,1770295839871,-506.851,0.00017825,2]
[404564201,1770295839880,-378.0,0.00017833,2]
[404564202,1770295839890,-200.0,0.00017855,2]
[404564203,1770295839899,-500.0,0.00017856,2]
[404564205,1770295839909,-500.0,0.00017856,2]
[404564207,1770295839918,-200.0,0.00017856,2]
[404564208,1770295839927,-436.0,0.00017863,2]
[404564209,1770295839938,-500.0,0.0001789,2]
[404564210,1770295839947,-25000.0,0.00017891,3]
[404564211,1770295839957,-160.0,0.00017891,3]
[404564212,1770295839967,-25000.0,0.000179,3]
[404564213,1770295839977,-12968.13672429,0.000179,3]
[404564215,1770295839987,-23425.62096349,0.000179,2]
[404564216,1770295840000,-17956.09680627,0.000179,2]
[404564217,1770295840010,-508.2425766,0.000179,2]
[404564218,1770295840019,-1066.21775424,0.000179,3]
[404564219,1770295840029,-188.17333529,0.000179,2]
[404564220,1770295840039,-2679.88539747,0.000179,2]
[404564221,1770295840048,-1184.21927498,0.000179,2]
[404564222,1770295840058,-13981.14115374,0.000179,2]
[404564223,1770295840068,-15260.0,0.000179,2]
[404564225,1770295840078,-436.0,0.00017918,2]
[404564227,1770295840088,-549.0,0.00017934,2]
[404564229,1770295840098,-436.0,0.00017972,2]
[404564231,1770295840107,-500.0,0.00017973,2]
[404564233,1770295840119,-500.0,0.00017973,2]
[404564235,1770295840129,-500.0,0.00017973,2]
[404564237,1770295840139,-500.0,0.00017973,2]
[404564239,1770295840149,-561.5530591,0.00017973,2]
[404564240,1770295840159,-500.0,0.00017973,2]
[404564241,1770295840168,-309.44398841,0.00017973,2]
[404564242,1770295840178,-500.0,0.00017973,2]
[404564243,1770295840188,-500.0,0.00017973,2]
[404564244,1770295840198,-500.0,0.00017973,2]
[404564245,1770295840208,-500.0,0.00017973,2]
[404564246,1770295840218,-500.0,0.00017973,2]
[404564247,1770295840228,-500.0,0.00017973,2]
[404564248,1770295840237,-500.0,0.00017973,2]
[404564249,1770295840251,-500.0,0.00017973,2]
[404564250,1770295840260,-500.0,0.00017973,2]
[404564251,1770295840270,-500.0,0.00017973,2]
[404564252,1770295840280,-500.0,0.00017973,2]
[404564253,1770295840289,-500.0,0.00017973,2]
[404564254,1770295840299,-500.0,0.00017973,2]
[404564255,1770295840309,-500.0,0.00017973,2]
[404564256,1770295840319,-500.0,0.00017973,2]
[404564257,1770295840328,-500.0,0.00017973,2]
[404564258,1770295840338,-520.97702983,0.00017973,2]
[404564259,1770295840348,-500.0,0.00017973,2]
[404564260,1770295840358,-500.0,0.00017973,2]
[404564261,1770295840368,-500.0,0.00017973,2]
[404564262,1770295840378,-500.0,0.00017973,2]
[404564263,1770295840387,-262.39107038,0.00017973,2]
[404564264,1770295840397,-500.0,0.00017973,2]
[404564265,1770295840406,-500.0,0.00017973,2]
[404564266,1770295840416,-500.0,0.00017973,2]
[404564267,1770295840426,-500.0,0.00017973,2]
[404564268,1770295840436,-500.0,0.00017973,2]
[404564269,1770295840447,-500.0,0.00017973,2]
[404564270,1770295840458,-502.08032841,0.00017973,2]
[404564271,1770295840468,-500.0,0.00017973,2]
[404564272,1770295840478,-500.0,0.00017973,2]
[404564273,1770295840489,-500.0,0.00017973,2]
[404564274,1770295840502,-500.0,0.00017973,2]
[404564275,1770295840513,-160.11845722,0.00017973,2]
[404564276,1770295840523,-500.0,0.00017973,2]
[404564277,1770295840535,-500.0,0.00017973,2]
[404564278,1770295840545,-500.0,0.00017973,2]
[404564279,1770295840555,-251.3953049,0.00017973,2]
[404564280,1770295840565,-154.5345725,0.00017979,2]
[404564281,1770295840575,-1000.0,0.00017982,2]
[404564282,1770295840585,-256.366,0.00017982,2]
[404564283,1770295840596,-502.60776792,0.00017982,2]
[404564284,1770295840606,-378.0,0.00017989,2]
[404564285,1770295840616,-500.0,0.00017989,3]
[404564286,1770295840626,-500.0,0.00017989,3]
[404564287,1770295840636,-500.0,0.00017989,3]
[404564288,1770295840646,-500.0,0.00017989,3]
[404564289,1770295840655,-500.0,0.00017989,3]
[404564291,1770295840839,-500.0,0.00017989,3]
[404564292,1770295840851,-500.0,0.00017989,3]
[404564293,1770295840861,-500.0,0.00017989,3]
[404564294,1770295840871,-721.12765535,0.00017989,3]
[404564295,1770295840880,-445.7744494,0.00017989,3]
[404564296,1770295840890,-209.40437684,0.00017989,3]
[404564297,1770295840901,-500.0,0.00017989,3]
[404564298,1770295840910,-747.8093786,0.00017989,3]
[404564299,1770295840920,-322.6107,0.00017989,3]
[404564300,1770295840930,-151.0,0.00017989,3]
[404564301,1770295840940,-217.15233878,0.00017989,3]
[404564302,1770295840949,-500.0,0.00017989,3]
[404564303,1770295840959,-775.47832561,0.00017989,3]
[404564304,1770295840969,-334.5472959,0.00017989,3]
[404564305,1770295840979,-151.0,0.00017989,3]
[404564306,1770295840988,-225.18697532,0.00017989,3]
[404564307,1770295841003,-500.0,0.00017989,3]
[404564309,1770295841012,-804.17102365,0.00017989,3]
[404564310,1770295841023,-346.92554585,0.00017989,3]
[404564311,1770295841033,-5000.0,0.00017989,3]
[404564312,1770295841044,-151.0,0.00017989,3]
[404564313,1770295841054,-233.51889341,0.00017989,3]
[404564314,1770295841064,-500.0,0.00017989,3]
[404564315,1770295841075,-833.92535153,0.00017989,3]
[404564316,1770295841085,-359.76179104,0.00017989,3]
[404564317,1770295841095,-500.0,0.00017989,3]
[404564318,1770295841106,-5000.0,0.00017989,3]
[404564319,1770295841116,-151.0,0.00017989,3]
[404564320,1770295841126,-242.15909246,0.00017989,3]
[404564321,1770295841136,-500.0,0.00017989,3]
[404564322,1770295841146,-864.78058953,0.00017989,3]
[404564323,1770295841155,-373.07297731,0.00017989,3]
[404564324,1770295841165,-270.21862608,0.00017989,3]
[404564325,1770295841181,-5000.0,0.00017989,3]
[404564326,1770295841191,-151.0,0.00017989,3]
[404564327,1770295841200,-251.11897888,0.00017989,3]
[404564328,1770295841212,-500.0,0.00017989,3]
[404564329,1770295841222,-784.35269858,0.00017989,3]
[404564330,1770295841231,-386.87667747,0.00017989,3]
[404564331,1770295841241,-5000.0,0.00017989,3]
[404564332,1770295841255,-151.0,0.00017989,3]
[404564333,1770295841265,-260.4103811,0.00017989,3]
[404564334,1770295841274,-500.0,0.00017989,3]
[404564335,1770295841283,-401.19111454,0.00017989,3]
[404564336,1770295841293,-5000.0,0.00017989,3]
[404564337,1770295841302,-151.0,0.00017989,3]
[404564338,1770295841312,-270.0455652,0.00017989,3]
[404564339,1770295841321,-500.0,0.00017989,3]
[404564340,1770295841331,-416.03518578,0.00017989,3]
[404564341,1770295841340,-151.0,0.00017989,3]
[404564342,1770295841349,-5000.0,0.00017989,3]
[404564343,1770295841359,-500.0,0.00017989,3]
[404564344,1770295841368,-280.03725112,0.00017989,3]
[404564345,1770295841376,-431.42848765,0.00017989,3]
[404564346,1770295841387,-151.0,0.00017989,3]
[404564347,1770295841397,-5000.0,0.00017989,3]
[404564348,1770295841407,-500.0,0.00017989,3]
[404564349,1770295841416,-210.68979627,0.00017989,3]
[404564350,1770295841426,-447.3913417,0.00017989,3]
[404564351,1770295841435,-151.0,0.00017989,3]
[404564352,1770295841449,-5000.0,0.00017989,3]
[404564353,1770295841459,-494.97768813,0.00017989,3]
[404564354,1770295841469,-5000.0,0.00017989,3]
[404564355,1770295841479,-463.94482134,0.00017989,3]
[404564356,1770295841489,-151.0,0.00017989,3]
[404564357,1770295841502,-5000.0,0.00017989,3]
[404564358,1770295841511,-481.11077973,0.00017989,3]
[404564359,1770295841521,-5000.0,0.00017989,3]
[404564360,1770295841535,-498.91187858,0.00017989,3]
[404564361,1770295841544,-5000.0,0.00017989,3]
[404564362,1770295841554,-500.0,0.00017989,3]
[404564363,1770295841564,-517.37161808,0.00017989,3]
[404564364,1770295841574,-5000.0,0.00017989,3]
[404564365,1770295841584,-500.0,0.00017989,3]
[404564366,1770295841594,-536.51436795,0.00017989,3]
[404564367,1770295841603,-5000.0,0.00017989,3]
[404564368,1770295841613,-500.0,0.00017989,3]
[404564369,1770295841623,-743.50770149,0.00017989,3]
[404564370,1770295841634,-556.36539957,0.00017989,3]
[404564371,1770295841643,-5000.0,0.00017989,3]
[404564372,1770295841653,-771.01748645,0.00017989,3]
[404564373,1770295841663,-576.95091935,0.00017989,3]
[404564374,1770295841673,-500.0,0.00017989,3]
[404564375,1770295841683,-799.54513345,0.00017989,3]
[404564376,1770295841693,-598.29810337,0.00017989,3]
[404564377,1770295841703,-1428.38747117,0.00017989,3]
[404564378,1770295841712,-500.0,0.00017989,3]
[404564379,1770295841722,-829.12830338,0.00017989,3]
[404564380,1770295841731,-859.80605061,0.00017989,3]
[404564381,1770295841740,-500.0,0.00017989,3]
[404564382,1770295841753,-891.61887448,0.00017989,3]
[404564383,1770295841763,-500.0,0.00017989,3]
[404564384,1770295841772,-209.08407266,0.00017989,3]
[404564385,1770295841782,-500.0,0.00017989,3]
[404564386,1770295841791,-174.61919141,0.00017989,3]
[404564387,1770295841802,-500.0,0.00017989,3]
[404564388,1770295841811,-2000.0,0.00017989,3]
[404564389,1770295841820,-181.08010149,0.00017989,3]
[404564390,1770295841829,-500.0,0.00017989,3]
[404564391,1770295841839,-176.28122483,0.00017989,3]
[404564392,1770295841849,-2000.0,0.00017989,3]
[404564393,1770295841859,-1481.23780761,0.00017989,3]
[404564394,1770295841868,-500.0,0.00017989,3]
[404564395,1770295841878,-250.0,0.00017989,3]
[404564396,1770295841887,-2000.0,0.00017989,3]
[404564397,1770295841896,-187.78006525,0.00017989,3]
[404564398,1770295841906,-2000.0,0.00017989,3]
[404564399,1770295841915,-194.72792766,0.00017989,3]
[404564400,1770295841924,-2000.0,0.00017989,3]
[404564401,1770295841934,-201.93286099,0.00017989,3]
[404564402,1770295841943,-209.40437684,0.00017989,3]
[404564403,1770295841953,-2000.0,0.00017989,3]
[404564404,1770295841963,-217.15233878,0.00017989,3]
[404564405,1770295841971,-225.18697532,0.00017989,3]
[404564406,1770295841980,-1536.04360649,0.00017989,3]
[404564407,1770295841990,-250.0,0.00017989,3]
[404564408,1770295842001,-1592.87721993,0.00017989,3]
[404564409,1770295842011,-233.51889341,0.00017989,3]
[404564410,1770295842020,-1651.81367706,0.00017989,3]
[404564411,1770295842030,-242.15909246,0.00017989,3]
[404564412,1770295842040,-1712.93078312,0.00017989,3]
[404564413,1770295842050,-251.11897888,0.00017989,3]
[404564414,1770295842060,-1776.30922209,0.00017989,3]
[404564415,1770295842070,-260.4103811,0.00017989,3]
[404564416,1770295842079,-250.0,0.00017989,3]
[404564417,1770295842089,-2000.0,0.00017989,3]
[404564418,1770295842099,-270.0455652,0.00017989,3]
[404564419,1770295842109,-250.0,0.00017989,3]
[404564420,1770295842119,-2000.0,0.00017989,3]
[404564421,1770295842128,-250.0,0.00017989,3]
[404564422,1770295842138,-280.03725112,0.00017989,3]
[404564423,1770295842148,-250.0,0.00017989,3]
[404564424,1770295842157,-2000.0,0.00017989,3]
[404564425,1770295842167,-250.0,0.00017989,3]
[404564426,1770295842176,-290.39862941,0.00017989,3]
[404564427,1770295842185,-250.0,0.00017989,3]
[404564428,1770295842195,-2000.0,0.00017989,3]
[404564429,1770295842204,-250.0,0.00017989,3]